Cogmind - Beta 14 @@@ ROGUE MODE // 2025.03.28 @ 19:36:19 Player: canerib Result: Destroyed by G-47 Trooper with Particle Gun Performance ------------- Evolutions (0) 0 Regions Visited (1) 200 Robots Destroyed (11) 55 Value Destroyed (198) 198 Prototype IDs (0) 0 Alien Tech Used (0) 0 Bonus (0) 0 TOTAL SCORE: 453 Bonus ------- None Cogmind --------- Core Integrity 0/250 Matter 292/300 Energy 125/125 System Corruption 2% Temperature Cool (22) Movement Flying (37) Location -10/Materials Parts ------- > --- POWER (1) -------- Light Ion Engine > --- PROPULSION (2) --- Flight Unit Flight Unit > --- UTILITY (2) ------ Heat Sink Structural Scanner > --- WEAPON (2) ------- Small Laser Light Assault Rifle > --- INVENTORY (5) ---- Flight Unit Sensor Array Peak State ------------ > --- POWER ------------ Light Ion Engine > --- PROPULSION ------- Flight Unit Flight Unit > --- UTILITY ---------- Heat Sink Structural Scanner > --- WEAPON ----------- Small Laser Light Assault Rifle > --- INVENTORY -------- Flight Unit [Rating: 7] Favorites ----------- Power Light Ion Engine Engine Light Ion Engine Propulsion Flight Unit Treads Light Treads Flight Unit Flight Unit Utility Heat Sink Device Heat Sink Weapon Light Assault Rifle Energy Gun Small Laser Ballistic Gun Light Assault Rifle Special Weapon Mining Laser Build | -11 -10 ------- Run | Yrd Mat Slots Evolved . | . . Power . | . . Propulsion . | . . Utility . | . . Weapon . | . . Parts Attached 18 | 3 15 Power 2 | 1 1 Engine 2 | 1 1 Core . | . . Reactor . | . . Propulsion 8 | 1 7 Treads 1 | 1 . Leg . | . . Wheel . | . . Hover . | . . Flight 7 | . 7 Utility 2 | . 2 Device 2 | . 2 Storage . | . . Processor . | . . Hackware . | . . Protection . | . . Artifact . | . . Weapon 6 | 1 5 Energy Gun 2 | . 2 Energy Cannon . | . . Ballistic Gun 3 | 1 2 Ballistic Cannon . | . . Launcher . | . . Special Weapon 1 | . 1 Impact Weapon . | . . Slashing Weapon . | . . Piercing Weapon . | . . Special Melee Weapon . | . . Unidentified Prototypes . | . . Parts Lost 4 | . 4 Power . | . . Propulsion 3 | . 3 Utility . | . . Weapon 1 | . 1 Highest Loss Streak 4 | . 4 To Critical Strikes . | . . Average Slot Usage (%) 50 | . 50 Engine 5 | . 5 Flight 18 | . 18 Device 8 | . 8 Energy Gun 7 | . 7 Ballistic Gun 9 | . 9 Special Weapon 1 | . 1 Peak Build Rating 7 | 1 7 Average Rating 3 | . 3 On Entrance . | . . Naked Turns 42 | . 42 Heaviest Build 7 | 2 7 Greatest Support 8 | 3 8 Greatest Overweight (x) . | . . Average Overweight (x) . | . . Largest Inventory Capacity 5 | 5 5 Average Capacity 5 | 5 5 Most Carried 2 | 1 2 Average Carried 1 | . 1 Final Capacity 5 | 5 5 Final Carried 2 | 1 2 Class Distribution -------------------- 63% | Mutant 36% | Scavenger-Mutant Dominant Class ---------------- Mutant | -10/Materials Resources | -11 -10 ----------- Run | Yrd Mat Matter Collected 418 | 193 225 Remotely . | . . Salvage Created 311 | . 311 Parts 30 | . 30 Haulers Intercepted 1 | . 1 Recyclers Shooed 2 | . 2 Parts Field Recycled . | . . Retrieved Matter . | . . Parts Self-Destructed . | . . Prevented . | . . Kills | -11 -10 ------- Run | Yrd Mat Combat Hostiles Destroyed 10 | . 10 Guns 10 | . 10 Classes Destroyed 3 | . 3 Hauler 1 | . 1 Swarmer 6 | . 6 Grunt 4 | . 4 Best Kill Streak 3 | . 3 Combat Bots Only 3 | . 3 Max Kills in Single Turn 1 | . 1 Gunslinging . | . . Exploded . | . . Melee . | . . Uniques/NPCs Destroyed . | . . Combat | -11 -10 -------- Run | Yrd Mat Hostile Shots Fired 85 | . 85 Missed 31 | . 31 Damage Taken 535 | . 535 Core 258 | . 258 Absorbed by Shields . | . . Core Remaining (%) 100 | 100 . Volleys Fired 76 | . 76 Largest 2 | . 2 Hottest 120 | . 120 Shots Fired 91 | . 91 Gun 90 | . 90 Cannon . | . . Launcher . | . . Special 1 | . 1 Kinetic 58 | . 58 Thermal 33 | . 33 Explosive . | . . Electromagnetic . | . . Robot Hit Streak 8 | . 8 Robot Miss Streak 7 | . 7 Penetration Max . | . . Secondary Targets . | . . Shots Hit Robots 57 | . 57 Core Hits 19 | . 19 Critical Kills . | . . Critical Parts Destroyed . | . . Critical Strikes . | . . Melee Attacks . | . . Impact . | . . Slashing . | . . Piercing . | . . Sneak Attacks . | . . Combat Hostiles . | . . Follow-up Attacks . | . . Damage Inflicted 528 | . 528 Guns 528 | . 528 Cannons . | . . Explosions . | . . Melee . | . . Ramming . | . . Kinetic 299 | . 299 Thermal 229 | . 229 Explosive . | . . Electromagnetic . | . . Impact . | . . Slashing . | . . Piercing . | . . Highest Corruption 2 | . 2 Average Corruption 2 | . 2 Corruption Purged . | . . Corruption Blocked . | . . Effects 5 | . 5 Message Errors 1 | . 1 Matter Fused 1 | . 1 Heat Flow Errors 1 | . 1 Parts Rejected 1 | . 1 Data Loss (minor) 1 | . 1 Overload Shots . | . . Overflow Damage . | . . Projectiles . | . . Explosions . | . . Melee . | . . Knockbacks . | . . Impact . | . . Kinetic . | . . Secondary . | . . Self-Inflicted Damage . | . . Shots . | . . Rammed . | . . Targets Rammed . | . . Kicked . | . . Crushed . | . . Highest Temperature 176 | . 176 Average Temperature 47 | . 47 Received Heat Transfer 171 | . 171 Siege Activations . | . . Robots Corrupted . | . . Combat Hostiles . | . . Parts Fried . | . . Impact Corruptions . | . . Robots Melted . | . . Combat Hostiles . | . . Parts Melted . | . . Heat Transferred 525 | . 525 Parts Sabotaged . | . . Parts Stolen . | . . Parts Stripped . | . . Power Chain Reactions . | . . Alert | -11 -10 ------- Run | Yrd Mat Peak Influence 257 | . 257 Initial . | . . Average 116 | . 127 Maximum Alert Level 1 | . 1 Low Security (%) 78 | 100 76 Level 1 21 | . 23 Level 2 . | . . Level 3 . | . . Level 4 . | . . Level 5 . | . . High Security . | . . Max Security . | . . Squads Dispatched 3 | . 3 Investigation 1 | . 1 Extermination . | . . Reinforcement 2 | . 2 Assault . | . . Garrison . | . . Intercept . | . . Searches Triggered . | . . Construction Impeded . | . . Haulers Reinforced . | . . Active Scanning Responses . | . . Cargo Convoy Interrupts . | . . Stealth | -11 -10 --------- Run | Yrd Mat Distress Signals 3 | . 3 Communications Jammed . | . . Distress Signals . | . . Times Spotted 24 | . 24 Peak Tracking Total 7 | . 7 Tactical Retreats 1 | . 1 Traps | -11 -10 ------- Run | Yrd Mat Traps Triggered 2 | . 2 Indirectly . | . . Trap Hack Attempts . | . . Triggered . | . . Disarmed . | . . Reprogrammed . | . . Reused . | . . Traps Extracted . | . . Installed . | . . Triggered . | . . Machines | -11 -10 ---------- Run | Yrd Mat Machines Disabled 1 | . 1 Max in Single Turn 1 | . 1 Machines Repaired . | . . Machines Dismantled . | . . Machines Sabotaged . | . . Overloaded Fab Kills . | . . Hacking | -11 -10 --------- Run | Yrd Mat Machines Accessed . | . . Terminals . | . . Fabricators . | . . Repair Stations . | . . Recycling Units . | . . Scanalyzers . | . . Garrison Access . | . . Total Hacks . | . . Successful . | . . Failed . | . . Catastrophic . | . . Database Lockouts . | . . Manual . | . . Terminals . | . . Fabricators . | . . Repair Stations . | . . Recycling Units . | . . Scanalyzers . | . . Garrison Access . | . . Terminal Hacks . | . . Fabricator Hacks . | . . Repair Station Hacks . | . . Recycling Unit Hacks . | . . Scanalyzer . | . . Garrison Access Hacks . | . . Unauthorized Hacks . | . . Terminals . | . . Fabricators . | . . Repair Stations . | . . Recycling Units . | . . Scanalyzers . | . . Garrison Access . | . . Data Cores Recovered . | . . Used . | . . Hacking Detections . | . . Full Trace Events . | . . Feedback Events . | . . Feedback Blocked . | . . Robot Schematics Acquired . | . . Robots Built . | . . Authchips . | . . Time . | . . Total Robot Build Rating . | . . Part Schematics Acquired . | . . Parts Built . | . . Authchips . | . . Time . | . . Total Part Build Rating . | . . Parts Repaired . | . . Time . | . . Parts Recycled . | . . Recycled Matter . | . . Retrieved Matter . | . . Retrieved Components . | . . Parts Scanalyzed . | . . Part Schematics Acquired . | . . Parts Damaged . | . . Bothacking | -11 -10 ------------ Run | Yrd Mat Used RIF Installer . | . . Robots Hacked . | . . Non-combat . | . . Combat . | . . Robot Hacks Applied . | . . Relay Couplers Released . | . . Fabnet Peak Effective % . | . . Robots Rewired . | . . Allies Hacked . | . . Hacks Repelled . | . . Allies | -11 -10 -------- Run | Yrd Mat Total Allies . | . . Largest Group . | . . Highest-Rated Group . | . . Highest-Rated Ally . | . . Total Orders . | . . Ally Attacks . | . . Total Damage . | . . Kills . | . . Allies Corrupted . | . . Allies Melted . | . . Intel | -11 -10 ------- Run | Yrd Mat Robot Analysis Total . | . . Derelict Logs Recovered . | . . Drone Launches . | . . Drone Recoveries . | . . Exploration | -11 -10 ------------- Run | Yrd Mat Turns Passed 376 | 33 343 Spaces Moved 351 | 55 296 Core 153 | 55 98 Treads . | . . Legs . | . . Wheels . | . . Hover . | . . Flight 198 | . 198 Fastest Speed 37 | 50 37 Average Speed 43 | 50 41 Slowest Speed 50 | 50 50 Overloaded Moves . | . . Propulsion Burnouts . | . . Robots Hopped 6 | . 6 Cave-ins Triggered . | . . Exploration Rate (%) 28 | 4 53 Regions Visited 1 Branch Regions . Pre-discovered Areas . | . . Known Exits Taken . | . . Unknown Exits Taken 1 | 1 . Scrap Searched . | . . Spaces Dug . | . . Terrain Destroyed . | . . Melee . | . . Projectile . | . . AOE . | . . Terrain Rammed . | . . Walls Destroyed . | . . Machines Disabled . | . . Actions | -11 -10 --------- Run | Yrd Mat Total 482 | 60 422 Wait 38 | . 38 Move 338 | 54 284 Hop 6 | . 6 Pick Up 1 | . 1 Fast Attach 16 | 3 13 Attach 1 | . 1 Detach 1 | 1 . Swap 1 | . 1 Drop 4 | 2 2 Fire 76 | . 76 Melee . | . . Ram . | . . Kick . | . . Crush . | . . Escape Stasis . | . . Rewire . | . . Trap . | . . Miscellaneous . | . . Route ------- -11/Scrapyard -10/Materials (discovered 2 exits: [*Min] / [Sub]) History --------- Turn | Location | Event 5 | -11/Scrapyard | Discovered new exit (range 15) 34 | -11/Scrapyard | Entered Materials 136 | -10/Materials | Core integrity fell below 50% 186 | -10/Materials | Lost 4 parts (3n1w) 212 | -10/Materials | Discovered new exit (range 8) 228 | -10/Materials | Core integrity fell below 20% 340 | -10/Materials | Discovered new exit (range 9) 377 | -10/Materials | Destroyed by G-47 Trooper with Particle Gun Last Messages --------------- 00258_ Acquired 39 matter. 00261_ R-06 Scavenger collects Aluminum Leg. 00265_ R-06 Scavenger collects Lgt. Assault Rifle. 00269_ R-06 Scavenger collects Mining Laser. 00273_ R-06 Scavenger collects Lgt. Ion Engine. 00284_ K-01 Serf cleans the Terminal. 00288_ A-02 Transporter destroyed. 00291_ K-01 Serf collects debris. 00293_ Acquired 44 matter. 00293_ Acquired 10 matter. 00294_ Acquired Structural Scanner. 00296_ K-01 Serf collects debris. 00303_ Acquired Sensor Array. 00320_ Acquired 13 matter. 00321_ K-01 Serf collects debris. 00340_ EXIT=FOUND 00342_ A-02 Transporter sends out distress signal. 00370_ G-34 Mercenary destroyed. Map ----- +----------------------------------------------------+ | ???? # | + T #""!"|""## | | ???? + T # ??########## | | ???? # #""" ?????????# | | ???? ### ## ###### ##""" #????????########### | | ???? ###+#############+##""" ################ | | ?????## # ## + + | | ?????## ? # ############# ######### | | ?????## ? # """"" ##?????????## ##??????##### | | ?????## ? # """"""""" ##?????????# #??????????? | | ?????## ?? # """ """ ##?????????# #??????????? | | ?????## ?? # ##?????????# ###########? | | ?????## ?? # ##?????????## ### #? | | ?????## ####/######### ##??# #?#""" #? | | ??? ###+### ####T#####+####### ###""" #? | | ?? *#"""% #? | | ?? T T % %%+% = #? | | ?? !#"""* #? | | ?? ####### ############+#########""" #? | | ?????########### ############# ??????#""" #? | | ???????????##### ###?######### ????????# #? | | ??????????????## ##??## # ????????##########? | | ??????????????<# ##??## =[ # ??????????????????? | | ??????????????## ##??##" =] # ??????????????????? | | ??????????????## ##??##T !# ??????????????????? | | ??????????????## ##??##" # ??????????????????? | | ??????????????## ###### @%= # ??????????????? | | ??????????????## #########g######+#??????????????? | | ??????????????## [! ????????? | | ??????????????## ????????? | | ??????????????## ????????? | | ??????????????###########################????????? | | ??????????????###########################????????? | | ?????????????????????????????????????????????????? | | ?????????????????????????????????????????????????? | | ?????????????????????????????????????????????????? | | | | | | | | | | | | | | | | | | | | | | | | | | | | | | | +----------------------------------------------------+ Best States ------------- Heat Dissipation 35 Energy Generation 10 Energy Capacity 125 Matter Stores 300 Matter Capacity 300 Sight Range 16 Terrain Scan Density 10 Evasion (%) 62 Item Schematics ----------------- None Robot Schematics ------------------ None Fabricated ------------ Nothing Alien Tech Used ----------------- None Achievements -------------- None Challenges ------------ None Game ------ Seed BottomlessPortableUnit Manual? 0 Play Time 00:05:40 Cumulative 88.6 hours Start 2025.03.28 @ 19:30:52 End 2025.03.28 @ 19:36:19 Sessions 1 Manual Loads 0 Difficulty Rogue Special Mode None Game No. 140 Rogue 140 Adventurer 0 Explorer 0 Win Type - Total 1 Types 1/0/0/0/0/0/0/0/0 Lore% 32 Gallery% 48 Achievement% 41 Wizard Run 0 Options --------- Layout 1 ASCII 1 Keyboard 0 Movement Mouse Keybinds 0 Fullscreen 1 Font 24/Smallcaps Map View 50x35 Zoom Use 0% Tactical HUD 1 Map Filters NONE Filters NONE Steam 1 RUN: 819acedb-ef82-49c7-aa2b-257890165c17